lending/lending_fUSD_20250121
["ID","MTS","AMOUNT","RATE_DAILY","PERIOD"]
[349779657,1737423045597,-607.09,0.00021367,2]
[349779658,1737423045606,-906.34,0.00021367,2]
[349779659,1737423045615,-500.0,0.00021367,2]
[349779660,1737423045625,-500.0,0.00021367,2]
[349779661,1737423045634,-1075.53,0.00021367,2]
[349779662,1737423045643,-1055.83,0.00021367,2]
[349779663,1737423045653,-500.0,0.00021367,2]
[349779664,1737423045662,-500.0,0.00021367,2]
[349779665,1737423045671,-556.9,0.00021367,2]
[349779666,1737423045680,-677.89,0.00021367,2]
[349779668,1737423045689,-1109.12,0.00021367,2]
[349779670,1737423045702,-675.24,0.00021367,2]
[349779672,1737423045712,-635.64,0.00021367,2]
[349779673,1737423045722,-500.0,0.00021367,2]
[349779675,1737423045731,-500.0,0.00021367,2]
[349779676,1737423045742,-952.66,0.00021367,2]
[349779678,1737423045752,-500.0,0.00021367,2]
[349779679,1737423045761,-762.46,0.00021367,2]
[349779681,1737423045771,-500.0,0.00021368,2]
[349779682,1737423045780,-352.61,0.00021368,2]
[349779684,1737423045790,-415.51623774,0.00021368,2]
[349779685,1737423045799,-500.0,0.00021368,2]
[349779687,1737423045809,-500.0,0.00021368,2]
[349779689,1737423045818,-500.0,0.00021368,2]
[349779690,1737423045828,-500.0,0.00021368,2]
[349779692,1737423045837,-500.0,0.00021368,2]
[349779694,1737423045847,-733.38,0.00021383,2]
[349779695,1737423045856,-8635.89165538,0.000214,2]
[349779697,1737423045865,-500.0,0.00021409,2]
[349779698,1737423045875,-500.0,0.00021409,2]
[349779700,1737423045884,-450.68,0.0002142,2]
[349779701,1737423045894,-190.7548069,0.00021433,2]
[349779703,1737423045907,-150.0,0.00021487,2]
[349779705,1737423045916,-2110.0,0.000215,2]
[349779706,1737423045926,-309.0948305,0.000215,2]
[349779708,1737423045936,-500.0,0.00021541,2]
[349779710,1737423045947,-520.02,0.00021541,2]
[349779711,1737423045957,-500.0,0.00021541,2]
[349779713,1737423045966,-500.0,0.00021541,2]
[349779715,1737423045978,-500.0,0.00021541,2]
[349779717,1737423045988,-500.0,0.00021541,2]
[349779718,1737423045997,-500.0,0.00021541,2]
[349779720,1737423046007,-500.0,0.00021541,2]
[349779721,1737423046016,-500.0,0.00021541,2]
[349779722,1737423046026,-285.90637428,0.00021541,2]
[349779723,1737423046035,-500.0,0.00021541,2]
[349779725,1737423046044,-500.0,0.00021541,2]
[349779727,1737423046054,-500.0,0.00021541,2]
[349779729,1737423046064,-500.0,0.00021541,2]
[349779731,1737423046073,-500.0,0.00021541,2]
[349779733,1737423046082,-500.0,0.00021541,2]
[349779735,1737423046091,-543.31,0.00021541,2]
[349779737,1737423046100,-500.0,0.00021541,2]
[349779739,1737423046109,-1140.62,0.00021541,2]
[349779740,1737423046119,-500.0,0.00021541,2]
[349779742,1737423046128,-702.2,0.00021541,2]
[349779744,1737423046138,-500.0,0.00021541,2]
[349779757,1737423046281,-732.0,0.00021541,2]
[349779758,1737423046291,-500.0,0.00021541,2]
[349779759,1737423046300,-500.0,0.00021541,2]
[349779760,1737423046309,-500.0,0.00021541,2]
[349779761,1737423046319,-1372.06,0.00021541,2]
[349779762,1737423046328,-586.1,0.00021541,2]
[349779763,1737423046338,-1413.04,0.00021541,2]
[349779764,1737423046349,-787.56,0.00021541,2]
[349779765,1737423046359,-599.28,0.00021541,2]
[349779766,1737423046368,-591.92037735,0.00021541,2]
[349779767,1737423046378,-669.5,0.00021541,2]
[349779768,1737423046387,-1739.87,0.00021541,2]
[349779769,1737423046396,-500.0,0.00021541,2]
[349779770,1737423046405,-546.19,0.00021541,2]
[349779771,1737423046414,-941.7,0.00021541,2]
[349779772,1737423046424,-500.0,0.00021541,2]
[349779773,1737423046433,-396.61690061,0.00021541,2]
[349779774,1737423046443,-500.0,0.00021541,2]
[349779775,1737423046454,-711.0648619,0.0002156,2]
[349779776,1737423046463,-233.39260162,0.00021595,2]
[349779777,1737423046472,-4962.52344908,0.00021625,2]
[349779778,1737423046482,-2124.45604812,0.00021626,2]
[349779780,1737423046492,-500.0,0.0002164,2]
[349779782,1737423046501,-500.0,0.0002164,2]
[349779783,1737423046511,-937.28,0.0002164,2]
[349779784,1737423046521,-500.0,0.0002164,2]
[349779785,1737423046533,-500.0,0.0002164,2]
[349779786,1737423046544,-994.79,0.0002164,2]
[349779787,1737423046555,-572.42,0.0002164,2]
[349779788,1737423046565,-500.0,0.0002164,2]
[349779789,1737423046575,-593.95,0.0002164,2]
[349779790,1737423046585,-500.0,0.0002164,2]
[349779791,1737423046595,-500.0,0.0002164,2]
[349779792,1737423046606,-951.48,0.0002164,2]
[349779793,1737423046616,-500.0,0.0002164,2]
[349779794,1737423046627,-950.11,0.0002164,2]
[349779795,1737423046637,-500.0,0.0002164,2]
[349779796,1737423046647,-500.0,0.0002164,2]
[349779797,1737423046656,-500.0,0.0002164,2]
[349779798,1737423046666,-500.982833,0.0002164,2]
[349779799,1737423046675,-500.0,0.0002164,2]
[349779800,1737423046685,-500.0,0.0002164,2]
[349779801,1737423046697,-1185.86,0.0002164,2]
[349779802,1737423046707,-613.73,0.00021641,2]
[349779803,1737423046715,-354.129524,0.00021641,2]
[349779804,1737423046725,-1377.51,0.00021641,2]
[349779805,1737423046734,-500.0,0.00021641,2]
[349779806,1737423046743,-500.0,0.00021641,2]
[349779807,1737423046751,-500.0,0.00021641,2]
[349779808,1737423046760,-925.63,0.00021641,2]
[349779809,1737423046769,-500.0,0.00021641,2]
[349779810,1737423046778,-708.37,0.00021641,2]
[349779811,1737423046787,-507.5,0.00021641,2]
[349779812,1737423046796,-1413.1,0.00021641,2]
[349779813,1737423046805,-742.13,0.00021641,2]
[349779814,1737423046814,-500.0,0.00021641,2]
[349779815,1737423046823,-1436.66,0.00021641,2]
[349779816,1737423046833,-500.0,0.00021641,2]
[349779817,1737423046842,-500.0,0.00021641,2]
[349779818,1737423046851,-607.09,0.00021641,2]
[349779819,1737423046860,-906.34,0.00021641,2]
[349779820,1737423046869,-500.0,0.00021641,2]
[349779821,1737423046878,-500.0,0.00021641,2]
[349779822,1737423046887,-1075.53,0.00021641,2]
[349779823,1737423046897,-1055.83,0.00021641,2]
[349779824,1737423046908,-500.0,0.00021641,2]
[349779825,1737423046917,-500.0,0.00021641,2]
[349779826,1737423046926,-556.9,0.00021641,2]
[349779827,1737423046936,-677.89,0.00021641,2]
[349779828,1737423046947,-1109.12,0.00021641,2]
[349779829,1737423046956,-675.24,0.00021641,2]
[349779830,1737423046965,-635.64,0.00021641,2]
[349779831,1737423046975,-500.0,0.00021641,2]
[349779832,1737423046986,-500.0,0.00021641,2]
[349779833,1737423046995,-952.66,0.00021641,2]
[349779834,1737423047005,-500.0,0.00021641,2]
[349779835,1737423047015,-762.46,0.00021641,2]
[349779836,1737423047024,-300.16,0.00021642,2]
[349779837,1737423047033,-500.0,0.00021642,2]
[349779838,1737423047042,-500.0,0.00021642,2]
[349779839,1737423047051,-500.0,0.00021642,2]
[349779840,1737423047061,-500.0,0.00021642,2]
[349779841,1737423047070,-500.0,0.00021642,2]
[349779842,1737423047080,-455.43321623,0.00021666,2]
[349779843,1737423047089,-190.7548069,0.00021666,2]
[349779844,1737423047099,-19591.12885576,0.0002167,2]
[349779845,1737423047108,-150.0,0.00021677,2]
[349779846,1737423047117,-500.0,0.00021683,2]
[349779847,1737423047127,-500.0,0.00021683,2]
[349779848,1737423047137,-4097.51,0.00021685,7]
[349779849,1737423047147,-4097.51,0.00021685,7]
[349779850,1737423047156,-4097.51,0.00021685,7]
[349779851,1737423047165,-4097.51,0.00021685,7]
[349779852,1737423047175,-1000.0,0.000217,2]
[349779853,1737423047185,-309.0948305,0.000217,2]
[349779854,1737423047198,-16620.55160396,0.00021726,2]
[349779855,1737423047208,-7943.11611652,0.00021726,2]
[349779856,1737423047219,-2203.5550421,0.00021727,2]
[349779857,1737423047228,-7929.06235169,0.00021729,2]
[349779858,1737423047238,-7943.11611652,0.0002173,2]
[349779859,1737423047247,-1458.19569483,0.0002173,2]
[349779860,1737423047257,-2869.29898665,0.00021731,2]
[349779861,1737423047267,-1189.37953345,0.00021731,2]
[349779862,1737423047277,-200.0,0.00021731,2]
[349779863,1737423047287,-1864.84971743,0.00021731,2]
[349779864,1737423047296,-1864.84971743,0.00021738,2]
[349779865,1737423047305,-1864.84971743,0.0002174,2]
[349779866,1737423047315,-2203.5550421,0.00021742,2]
[349779867,1737423047325,-972.13046323,0.00021742,2]
[349779868,1737423047335,-7929.0623517,0.00021746,2]
[349779869,1737423047344,-1189.37953345,0.00021746,2]
[349779870,1737423047353,-729.09784742,0.00021747,2]
[349779871,1737423047363,-16620.55160396,0.00021748,2]
[349779872,1737423047373,-1189.37953345,0.00021748,2]
[349779873,1737423047383,-1490.79098185,0.00021749,2]
[349779874,1737423047395,-717.32474667,0.00021751,2]
[349779875,1737423047410,-1088.65772435,0.00021753,2]
[349779876,1737423047423,-34094.9681123,0.00021755,2]
[349779877,1737423047434,-34094.9681123,0.00021756,2]
[349779878,1737423047445,-717.32474666,0.00021757,2]
[349779879,1737423047455,-200.0,0.00021758,2]
[349779880,1737423047464,-1179.68025879,0.0002176,2]
[349779881,1737423047473,-2869.29898665,0.0002176,2]
[349779882,1737423047483,-1179.68025879,0.00021761,2]
[349779883,1737423047492,-569.93988696,0.00021762,2]
[349779884,1737423047502,-2203.5550421,0.00021763,2]
[349779885,1737423047511,-2869.29898665,0.00021764,2]
[349779886,1737423047520,-717.32474666,0.00021765,2]
[349779887,1737423047530,-587.45491522,0.00021765,2]
[349779888,1737423047539,-1179.68025879,0.00021769,2]
[349779889,1737423047549,-1189.37953345,0.0002177,2]
[349779890,1737423047558,-1179.68025879,0.0002177,2]
[349779891,1737423047570,-16620.55160396,0.00021771,2]
[349779892,1737423047580,-1490.79098185,0.00021772,2]
[349779893,1737423047589,-34094.9681123,0.00021772,2]
[349779894,1737423047599,-1189.37953345,0.00021772,2]
[349779895,1737423047608,-881.65618549,0.00021772,2]
[349779896,1737423047617,-7943.11611652,0.00021776,2]
[349779897,1737423047627,-1189.37953345,0.00021776,2]
[349779898,1737423047637,-972.13046323,0.00021777,2]
[349779899,1737423047646,-717.32474666,0.00021777,2]
[349779900,1737423047656,-2869.29898665,0.00021778,2]
[349779901,1737423047665,-3000.0,0.0002178,2]
[349779902,1737423047674,-157209.54127829,0.0002178,2]
[349779903,1737423047684,-729.93988698,0.00021785,2]
[349779904,1737423047698,-1864.84971743,0.00021785,2]
[349779905,1737423047708,-200.0,0.00021786,2]
[349779906,1737423047718,-587.45491522,0.00021786,2]
[349779907,1737423047729,-717.32474667,0.00021786,2]
[349779908,1737423047740,-717.32474667,0.00021788,2]
[349779909,1737423047750,-729.93988698,0.00021789,2]
[349779910,1737423047759,-888.99906049,0.00021789,2]
[349779911,1737423047771,-1458.19569483,0.00021792,2]
[349779912,1737423047781,-200.0,0.00021795,2]
[349779913,1737423047791,-7943.11611652,0.00021796,2]
[349779914,1737423047801,-1088.65772435,0.00021797,2]
[349779915,1737423047810,-881.65618549,0.00021798,2]
[349779916,1737423047820,-538.98304159,0.000218,2]
[349779917,1737423047830,-200.0,0.000218,15]
[349779918,1737423047839,-1000.0,0.000218,2]
[349779919,1737423047849,-200.0,0.000218,14]
[349779920,1737423047858,-1490.79098185,0.00021804,2]
[349779921,1737423047868,-7943.11611652,0.00021804,2]
[349779922,1737423047877,-881.65618549,0.00021806,2]
[349779923,1737423047887,-587.45491522,0.00021809,2]
[349779924,1737423047897,-34094.9681123,0.00021809,2]
[349779925,1737423047908,-1088.65772435,0.00021809,2]
[349779926,1737423047918,-14272.31223305,0.00021811,2]
[349779927,1737423047928,-717.32474667,0.00021811,2]
[349779928,1737423047943,-150.0,0.00021814,2]
[349779929,1737423047957,-7929.0623517,0.00021815,2]
[349779930,1737423047966,-500.0,0.00021815,2]
[349779931,1737423047977,-520.02,0.00021815,2]
[349779932,1737423047987,-500.0,0.00021815,2]
[349779933,1737423047996,-500.0,0.00021815,2]
[349779934,1737423048006,-500.0,0.00021815,2]
[349779935,1737423048016,-500.0,0.00021815,2]
[349779936,1737423048025,-455.35019022,0.00021815,2]
[349779937,1737423048035,-500.0,0.00021815,2]
[349779938,1737423048045,-500.0,0.00021815,2]
[349779939,1737423048055,-500.0,0.00021815,2]
[349779940,1737423048064,-500.0,0.00021815,2]
[349779941,1737423048074,-500.0,0.00021815,2]
[349779942,1737423048084,-500.0,0.00021815,2]
[349779943,1737423048093,-500.0,0.00021815,2]
[349779944,1737423048103,-500.0,0.00021815,2]
[349779945,1737423048113,-543.31,0.00021815,2]
[349779946,1737423048123,-500.0,0.00021815,2]
[349779947,1737423048133,-1140.62,0.00021815,2]
[349779948,1737423048143,-500.0,0.00021815,2]
[349779949,1737423048153,-702.2,0.00021815,2]
[349779950,1737423048162,-500.0,0.00021815,2]
[349779951,1737423048172,-732.0,0.00021815,2]
[349779952,1737423048181,-500.0,0.00021815,2]
[349779953,1737423048190,-500.0,0.00021815,2]
[349779954,1737423048204,-500.0,0.00021815,2]
[349779955,1737423048214,-1372.06,0.00021815,2]
[349779956,1737423048224,-586.1,0.00021815,2]
[349779957,1737423048234,-1413.04,0.00021815,2]
[349779958,1737423048243,-787.56,0.00021815,2]
[349779959,1737423048255,-599.28,0.00021815,2]
[349779960,1737423048265,-669.5,0.00021815,2]
[349779961,1737423048275,-1739.87,0.00021815,2]
[349779962,1737423048284,-500.0,0.00021815,2]
[349779963,1737423048294,-941.7,0.00021815,2]
[349779964,1737423048304,-500.0,0.00021815,2]
[349779965,1737423048314,-500.0,0.00021815,2]
[349779966,1737423048324,-569.93988696,0.00021816,2]
[349779967,1737423048334,-1863.0,0.00021816,2]
[349779968,1737423048344,-974.166,0.00021816,2]
[349779969,1737423048354,-907.0,0.00021816,2]
[349779970,1737423048364,-537.0,0.00021816,2]
[349779971,1737423048373,-3983.0,0.00021816,2]
[349779972,1737423048385,-637.0,0.00021816,2]
[349779973,1737423048395,-151.224,0.00021816,2]
[349779974,1737423048405,-3902.0,0.00021816,2]
[349779975,1737423048415,-1189.37953345,0.00021818,2]
[349779976,1737423048425,-1215.16307902,0.0002182,2]
[349779977,1737423048435,-1215.16307902,0.00021822,2]
[349779978,1737423048449,-500.0,0.00021824,2]
[349779979,1737423048459,-1179.68025879,0.00021827,2]
[349779980,1737423048469,-2869.29898665,0.00021828,2]
[349779981,1737423048479,-14272.31223305,0.00021828,2]
[349779982,1737423048489,-972.13046323,0.00021831,2]
[349779983,1737423048499,-200.0,0.00021831,2]
[349779984,1737423048509,-729.93988698,0.00021834,2]
[349779985,1737423048519,-717.32474667,0.00021836,2]
[349779986,1737423048529,-200.0,0.0002184,2]
[349779987,1737423048539,-1490.79098185,0.00021841,2]
[349779988,1737423048548,-166.0,0.00021842,2]
[349779989,1737423048558,-1215.16307902,0.00021842,2]
[349779990,1737423048567,-1189.37953345,0.00021844,2]
[349779991,1737423048577,-717.32474666,0.00021844,2]
[349779992,1737423048586,-717.32474667,0.00021845,2]
[349779993,1737423048596,-1458.19569483,0.00021845,2]
[349779994,1737423048605,-569.93988696,0.00021848,2]
[349779995,1737423048615,-972.13046323,0.00021851,2]
[349779996,1737423048624,-1088.65772435,0.00021852,2]
[349779997,1737423048634,-200.0,0.00021853,2]
[349779998,1737423048643,-200.0,0.00021853,2]
[349779999,1737423048652,-1215.16307902,0.00021853,2]
[349780000,1737423048662,-14272.31223305,0.00021854,2]
[349780001,1737423048671,-717.32474667,0.00021854,2]
[349780002,1737423048681,-717.32474667,0.00021855,2]
[349780003,1737423048691,-7929.0623517,0.00021855,2]
[349780004,1737423048704,-1189.37953345,0.00021855,2]
[349780005,1737423048714,-569.93988696,0.00021859,2]
[349780006,1737423048724,-881.65618549,0.00021859,2]
[349780007,1737423048734,-1189.37953345,0.0002186,2]
[349780008,1737423048749,-717.32474667,0.0002186,2]
[349780009,1737423048759,-717.32474667,0.00021863,2]
[349780010,1737423048771,-500.0,0.00021863,2]
[349780011,1737423048782,-7929.06235169,0.00021865,2]
[349780012,1737423048792,-587.45491522,0.00021866,2]
[349780013,1737423048803,-16620.55160396,0.00021868,2]
[349780014,1737423048813,-1215.16307902,0.00021868,2]
[349780015,1737423048825,-729.09784742,0.00021868,2]
[349780016,1737423048971,-1458.19569483,0.00021869,2]
[349780017,1737423048982,-881.65618549,0.0002187,2]
[349780018,1737423048992,-129496.92686693,0.0002187,2]
[349780019,1737423049002,-2203.5550421,0.00021871,2]
[349780020,1737423049013,-1490.79098185,0.00021872,2]
[349780021,1737423049023,-519.2101584,0.00021873,2]
[349780022,1737423049034,-150.0,0.00021873,2]
[349780023,1737423049043,-7929.06235169,0.00021873,2]
[349780024,1737423049054,-40541.194846,0.00021874,3]
[349780025,1737423049064,-200.0,0.00021875,2]
[349780026,1737423049073,-972.13046323,0.00021875,2]
[349780027,1737423049083,-7929.06235169,0.00021876,2]
[349780028,1737423049093,-16620.55160396,0.00021877,2]
[349780029,1737423049103,-729.09784742,0.00021878,2]
[349780030,1737423049113,-7929.0623517,0.00021879,2]
[349780031,1737423049125,-1088.65772435,0.00021879,2]
[349780032,1737423049135,-729.93988698,0.00021881,2]
[349780033,1737423049145,-34094.9681123,0.00021881,2]
[349780034,1737423049155,-717.32474666,0.00021881,2]
[349780035,1737423049165,-14272.31223305,0.00021883,2]
[349780036,1737423049175,-7929.06235169,0.00021884,2]
[349780037,1737423049185,-7929.0623517,0.00021884,2]
[349780038,1737423049198,-1458.19569483,0.00021885,2]
[349780039,1737423049209,-587.45491522,0.00021885,2]
[349780040,1737423049219,-1864.84971743,0.00021887,2]
[349780041,1737423049229,-14272.31223305,0.00021888,2]
[349780042,1737423049239,-500.0,0.0002189,2]
[349780043,1737423049250,-500.0,0.0002189,2]
[349780044,1737423049260,-500.0,0.0002189,2]
[349780045,1737423049271,-500.0,0.0002189,2]
[349780046,1737423049281,-500.0,0.0002189,2]
[349780047,1737423049291,-448.96,0.0002189,2]
[349780048,1737423049301,-554.1521,0.0002189,2]
[349780049,1737423049311,-729.09784742,0.0002189,2]
[349780050,1737423049321,-500.0,0.0002189,2]
[349780051,1737423049331,-5800.0,0.00021892,2]
[349780052,1737423049341,-569.93988696,0.00021892,2]
[349780053,1737423049351,-2203.5550421,0.00021892,2]
[349780054,1737423049361,-200.0,0.00021897,2]
[349780055,1737423049371,-205.12844974,0.00021898,2]
[349780056,1737423049380,-25849.17245991,0.00021898,2]
[349780057,1737423049390,-160.34341714,0.00021898,4]
[349780058,1737423049400,-729.09784742,0.00021899,2]
[349780059,1737423049411,-25849.17245989,0.00021899,2]
[349780060,1737423049420,-729.93988698,0.00021899,2]
[349780061,1737423049430,-2000.0,0.000219,2]
[349780062,1737423049440,-2000.0,0.000219,2]
[349780063,1737423049455,-2000.0,0.000219,2]
[349780064,1737423049465,-2000.0,0.000219,2]
[349780065,1737423049476,-8500.0,0.000219,2]
[349780066,1737423049486,-5800.0,0.000219,2]
[349780067,1737423049496,-2117.16,0.000219,31]
[349780068,1737423049507,-2117.16,0.000219,31]
[349780069,1737423049517,-2117.16,0.000219,31]
[349780070,1737423049528,-2117.16,0.000219,31]
[349780071,1737423049538,-2117.16,0.000219,31]
[349780072,1737423049548,-2117.16,0.000219,31]
[349780073,1737423049559,-2117.16,0.000219,31]
[349780074,1737423049569,-2117.16,0.000219,31]
[349780075,1737423049579,-2117.16,0.000219,31]
[349780076,1737423049589,-2117.16,0.000219,31]
[349780077,1737423049599,-2117.16,0.000219,31]
[349780078,1737423049609,-2117.16,0.000219,31]
[349780079,1737423049619,-2117.16,0.000219,31]
[349780080,1737423049629,-2117.16,0.000219,31]
[349780081,1737423049640,-2117.16,0.000219,31]
[349780082,1737423049650,-2117.16,0.000219,31]
[349780083,1737423049659,-14596.939874,0.000219,2]
[349780084,1737423049670,-1445.22250212,0.000219,2]
[349780085,1737423049679,-1013.84422937,0.000219,2]
[349780086,1737423049689,-1013.84422937,0.000219,2]
[349780087,1737423049702,-233.39260162,0.000219,2]
[349780088,1737423049711,-1013.84422937,0.000219,2]
[349780089,1737423049720,-1013.84422937,0.000219,2]
[349780090,1737423049730,-1013.84422937,0.000219,2]
[349780091,1737423049739,-1013.84422937,0.000219,2]
[349780092,1737423049749,-190.7548069,0.000219,2]
[349780093,1737423049758,-1013.84422937,0.000219,2]
[349780094,1737423049767,-1013.84422937,0.000219,2]
[349780095,1737423049776,-4962.52344908,0.000219,2]
[349780096,1737423049786,-1013.84422937,0.000219,2]
[349780097,1737423049795,-1013.84422937,0.000219,2]
[349780098,1737423049805,-1013.84422937,0.000219,2]
[349780099,1737423049815,-309.0948305,0.000219,2]
[349780100,1737423049825,-25849.17245989,0.000219,2]
[349780101,1737423049834,-1875.0,0.000219,2]
[349780102,1737423049844,-500.0,0.00021914,2]
[349780103,1737423049854,-500.0,0.00021914,2]
[349780104,1737423049864,-937.28,0.00021914,2]
[349780105,1737423049874,-500.0,0.00021914,2]
[349780106,1737423049883,-500.0,0.00021914,2]
[349780107,1737423049894,-994.79,0.00021914,2]
[349780108,1737423049904,-572.42,0.00021914,2]
[349780109,1737423049914,-500.0,0.00021914,2]
[349780110,1737423049923,-593.95,0.00021914,2]
[349780111,1737423049932,-500.0,0.00021914,2]
[349780112,1737423049942,-500.0,0.00021914,2]
[349780113,1737423049953,-951.48,0.00021914,2]
[349780114,1737423049963,-500.0,0.00021914,2]
[349780115,1737423049972,-950.11,0.00021914,2]
[349780116,1737423049985,-500.0,0.00021914,2]
[349780117,1737423049996,-500.0,0.00021914,2]
[349780118,1737423050005,-500.0,0.00021914,2]
[349780119,1737423050015,-500.982833,0.00021914,2]
[349780120,1737423050024,-500.0,0.00021914,2]
[349780121,1737423050033,-500.0,0.00021914,2]
[349780122,1737423050042,-161.962121,0.00021914,2]
[349780123,1737423050052,-1185.86,0.00021914,2]
[349780124,1737423050062,-613.73,0.00021915,2]
[349780125,1737423050072,-354.129524,0.00021915,2]
[349780126,1737423050081,-1377.51,0.00021915,2]
[349780127,1737423050091,-500.0,0.00021915,2]
[349780128,1737423050100,-500.0,0.00021915,2]
[349780129,1737423050110,-500.0,0.00021915,2]
[349780130,1737423050120,-925.63,0.00021915,2]
[349780131,1737423050130,-500.0,0.00021915,2]
[349780132,1737423050140,-708.37,0.00021915,2]
[349780133,1737423050150,-507.5,0.00021915,2]
[349780134,1737423050159,-1413.1,0.00021915,2]
[349780135,1737423050169,-742.13,0.00021915,2]
[349780136,1737423050178,-500.0,0.00021915,2]
[349780137,1737423050187,-1436.66,0.00021915,2]
[349780138,1737423050200,-500.0,0.00021915,2]
[349780139,1737423050209,-500.0,0.00021915,2]
[349780140,1737423050219,-607.09,0.00021915,2]
[349780141,1737423050228,-906.34,0.00021915,2]
[349780142,1737423050237,-500.0,0.00021915,2]
[349780143,1737423050247,-500.0,0.00021915,2]
[349780144,1737423050256,-1075.53,0.00021915,2]
[349780145,1737423050266,-1055.83,0.00021915,2]
[349780146,1737423050275,-500.0,0.00021915,2]
[349780147,1737423050286,-500.0,0.00021915,2]
[349780148,1737423050296,-556.9,0.00021915,2]
[349780149,1737423050305,-677.89,0.00021915,2]
[349780150,1737423050314,-1109.12,0.00021915,2]
[349780151,1737423050324,-675.24,0.00021915,2]
[349780152,1737423050333,-635.64,0.00021915,2]
[349780153,1737423050342,-500.0,0.00021915,2]
[349780154,1737423050352,-500.0,0.00021915,2]
[349780155,1737423050361,-952.66,0.00021915,2]
[349780156,1737423050371,-500.0,0.00021915,2]
[349780157,1737423050381,-762.46,0.00021915,2]
[349780158,1737423050390,-500.0,0.00021916,2]
[349780159,1737423050400,-500.0,0.00021916,2]
[349780160,1737423050410,-500.0,0.00021916,2]
[349780161,1737423050420,-500.0,0.00021916,2]
[349780162,1737423050429,-500.0,0.00021916,2]
[349780163,1737423050439,-500.0,0.00021917,3]
[349780164,1737423050449,-500.0,0.00021917,3]
[349780165,1737423050459,-500.0,0.00021917,3]
[349780166,1737423050468,-500.0,0.00021917,3]
[349780167,1737423050477,-500.0,0.00021917,3]
[349780168,1737423050486,-500.0,0.00021917,3]
[349780169,1737423050496,-500.0,0.00021917,3]
[349780170,1737423050505,-4000.0,0.00021918,2]
[349780171,1737423050515,-150.0,0.00021918,2]
[349780172,1737423050524,-398.8967656,0.0002192,2]
[349780173,1737423050534,-398.8967656,0.0002192,2]
[349780174,1737423050544,-398.8967656,0.0002192,2]
[349780175,1737423050555,-398.8967656,0.0002192,2]
[349780176,1737423050565,-398.8967656,0.0002192,2]
[349780177,1737423050574,-398.8967656,0.0002192,2]
[349780178,1737423050584,-398.8967656,0.0002192,2]
[349780179,1737423050594,-398.8967656,0.0002192,2]
[349780180,1737423050604,-398.8967656,0.0002192,2]
[349780181,1737423050614,-398.8967656,0.0002192,2]
[349780182,1737423050625,-398.8967656,0.0002192,2]
[349780183,1737423050635,-398.8967656,0.0002192,2]
[349780184,1737423050645,-398.8967656,0.0002192,2]
[349780185,1737423050655,-398.8967656,0.0002192,2]
[349780186,1737423050665,-398.8967656,0.0002192,2]
[349780187,1737423050675,-398.8967656,0.0002192,2]
[349780188,1737423050684,-398.8967656,0.0002192,2]
[349780189,1737423050694,-398.8967656,0.0002192,2]
[349780190,1737423050706,-398.8967656,0.0002192,2]
[349780191,1737423050715,-398.89,0.0002192,2]
[349780192,1737423050724,-930.75911973,0.0002192,2]
[349780193,1737423050734,-930.75911973,0.0002192,2]
[349780194,1737423050744,-930.75911973,0.0002192,2]
[349780195,1737423050754,-930.75911973,0.0002192,2]
[349780196,1737423050763,-930.75911973,0.0002192,2]
[349780197,1737423050773,-930.75911973,0.0002192,2]
[349780198,1737423050783,-930.75911973,0.0002192,2]
[349780199,1737423050792,-930.75911973,0.0002192,2]
[349780200,1737423050801,-930.75911973,0.0002192,2]
[349780201,1737423050810,-930.75911973,0.0002192,2]